fUST/lending_fUST_20250220
["ID","MTS","AMOUNT","RATE_DAILY","PERIOD"]
[353804042,1740059433145,-500.0,0.00013698,2]
[353804043,1740059433155,-500.0,0.00013698,2]
[353804044,1740059433164,-500.0,0.00013698,2]
[353804045,1740059433174,-4053.92,0.00013698,2]
[353804046,1740059433184,-500.0,0.00013698,2]
[353804047,1740059433193,-500.0,0.00013698,2]
[353804048,1740059433202,-5661.6,0.00013698,2]
[353804049,1740059433212,-746.66,0.00013698,2]
[353804050,1740059433222,-500.0,0.00013698,2]
[353804051,1740059433232,-153.0,0.000137,2]
[353804052,1740059433242,-153.0,0.000137,2]
[353804053,1740059433252,-153.0,0.000137,2]
[353804054,1740059433262,-1694.52532746,0.000137,2]
[353804055,1740059433271,-153.0,0.000137,2]
[353804056,1740059433281,-7438.69753278,0.00013739,2]
[353804057,1740059433291,-151.0,0.00013772,2]
[353804058,1740059433300,-500.0,0.00013773,2]
[353804059,1740059433309,-500.0,0.00013773,2]
[353804060,1740059433320,-3828.75254449,0.0001378,5]
[353804061,1740059433329,-1301.7732099,0.0001378,5]
[353804062,1740059433339,-500.0,0.0001378,2]
[353804063,1740059433348,-500.0,0.0001378,2]
[353804064,1740059433357,-500.0,0.0001378,2]
[353804065,1740059433367,-500.0,0.0001378,2]
[353804066,1740059433376,-500.0,0.0001378,2]
[353804067,1740059433386,-274.199,0.0001378,2]
[353804068,1740059433396,-500.0,0.0001378,2]
[353804069,1740059433405,-317.34,0.0001378,2]
[353804070,1740059433416,-500.0,0.0001378,2]
[353804071,1740059433425,-151.0,0.0001378,2]
[353804072,1740059433435,-151.492578,0.0001378,2]
[353804073,1740059433445,-500.0,0.0001378,2]
[353804074,1740059433455,-502.86,0.0001378,2]
[353804075,1740059433464,-500.0,0.0001378,2]
[353804076,1740059433474,-500.0,0.0001378,2]
[353804077,1740059433483,-506.0839322,0.0001378,2]
[353804078,1740059433493,-694.29,0.0001378,2]
[353804079,1740059433503,-500.0,0.0001378,2]
[353804080,1740059433512,-819.04,0.0001378,2]
[353804081,1740059433522,-500.0,0.0001378,2]
[353804082,1740059433531,-500.0,0.0001378,2]
[353804083,1740059433540,-500.0,0.0001378,2]
[353804084,1740059433550,-500.0,0.0001378,2]
[353804085,1740059433559,-503.67374723,0.0001378,2]
[353804086,1740059433569,-500.0,0.0001378,2]
[353804087,1740059433579,-698.85,0.0001378,2]
[353804088,1740059433590,-517.11,0.0001378,2]
[353804089,1740059433600,-521.14,0.0001378,2]
[353804090,1740059433611,-501.82626574,0.0001378,2]
[353804091,1740059433620,-500.0,0.0001378,2]
[353804092,1740059433630,-500.0,0.0001378,2]
[353804093,1740059433639,-500.0,0.0001378,2]
[353804094,1740059433647,-500.0,0.0001378,2]
[353804095,1740059433656,-500.0,0.0001378,2]
[353804096,1740059433665,-500.0,0.0001378,2]
[353804097,1740059433673,-151.0,0.0001378,2]
[353804098,1740059433682,-500.0,0.0001378,2]
[353804099,1740059433693,-500.0,0.0001378,2]
[353804100,1740059433703,-5000.0,0.0001378,2]
[353804101,1740059433713,-500.0,0.0001378,2]
[353804102,1740059433723,-5161.178,0.0001378,2]
[353804103,1740059433733,-2151.29,0.0001378,2]
[353804104,1740059433743,-2431.24,0.0001378,2]
[353804105,1740059433753,-10267.68,0.0001378,2]
[353804106,1740059433763,-1309.72,0.0001378,2]
[353804107,1740059433772,-500.0,0.0001378,2]
[353804108,1740059433783,-568.1,0.0001378,2]
[353804109,1740059433793,-500.0,0.0001378,2]
[353804110,1740059433803,-985.04,0.0001378,2]
[353804111,1740059433815,-675.78,0.0001378,2]
[353804112,1740059433825,-500.0,0.0001378,2]
[353804113,1740059433836,-500.0,0.0001378,2]
[353804114,1740059433846,-500.0,0.0001378,2]
[353804115,1740059433856,-626.57,0.0001378,2]
[353804116,1740059433866,-1385.46,0.0001378,2]
[353804117,1740059433876,-866.97,0.0001378,2]
[353804118,1740059433886,-28131.55,0.0001378,2]
[353804119,1740059433896,-792.7,0.0001378,2]
[353804120,1740059433906,-1507.5,0.0001378,2]
[353804121,1740059433916,-2035.24,0.0001378,2]
[353804122,1740059433926,-500.0,0.0001378,2]
[353804123,1740059433935,-3883.97,0.0001378,2]
[353804124,1740059433944,-744.96,0.0001378,2]
[353804125,1740059433954,-500.0,0.0001378,2]
[353804126,1740059433964,-500.0,0.0001378,2]
[353804127,1740059433974,-2457.33,0.0001378,2]
[353804128,1740059433983,-500.0,0.0001378,2]
[353804129,1740059433994,-946.99,0.0001378,2]
[353804130,1740059434003,-516.73,0.0001378,2]
[353804131,1740059434013,-1649.69,0.0001378,2]
[353804132,1740059434149,-941.06,0.0001378,2]
[353804133,1740059434159,-1270.28,0.0001378,2]
[353804134,1740059434168,-500.0,0.0001378,2]
[353804135,1740059434178,-222.986595,0.0001378,2]
[353804136,1740059434188,-222.986595,0.0001378,2]
[353804137,1740059434198,-222.986595,0.0001378,2]
[353804138,1740059434208,-222.986595,0.0001378,2]
[353804139,1740059434219,-222.986595,0.0001378,2]
[353804140,1740059434230,-222.986595,0.0001378,2]
[353804141,1740059434239,-500.0,0.0001378,2]
[353804142,1740059434250,-1615.09,0.0001378,2]
[353804143,1740059434260,-1001.46,0.0001378,2]
[353804144,1740059434270,-2433.0,0.0001378,2]
[353804145,1740059434279,-500.0,0.0001378,2]
[353804146,1740059434288,-1063.76,0.0001378,2]
[353804147,1740059434298,-500.0,0.0001378,2]
[353804148,1740059434308,-500.0,0.0001378,2]
[353804149,1740059434319,-500.0,0.0001378,2]
[353804150,1740059434328,-500.0,0.0001378,2]
[353804151,1740059434339,-151.0,0.0001378,2]
[353804152,1740059434349,-616.13,0.0001378,2]
[353804153,1740059434359,-500.0,0.0001378,2]
[353804154,1740059434369,-500.0,0.0001378,2]
[353804155,1740059434379,-11076.02,0.0001378,2]
[353804156,1740059434389,-500.0,0.0001378,2]
[353804157,1740059434398,-829.58,0.0001378,2]
[353804158,1740059434408,-1202.26,0.0001378,2]
[353804159,1740059434418,-160.90680858,0.0001378,2]
[353804160,1740059434433,-339.09319142,0.0001378,2]
[353804161,1740059434443,-122.8720657,0.0001378,2]
[353804162,1740059434459,-377.1279343,0.0001378,2]
[353804163,1740059434470,-500.0,0.0001378,2]
[353804164,1740059434479,-4053.92,0.0001378,2]
[353804165,1740059434488,-500.0,0.0001378,2]
[353804166,1740059434499,-500.0,0.0001378,2]
[353804167,1740059434508,-5661.6,0.0001378,2]
[353804168,1740059434519,-746.66,0.0001378,2]
[353804169,1740059434529,-13410.82102307,0.0001378,2]
[353804174,1740059437747,-331.83602905,0.00013507,2]
[353804175,1740059437805,-913.68013903,0.00013507,2]
[353804176,1740059437817,-11753.68535625,0.00013507,2]
[353804177,1740059437828,-8622.73746065,0.0001378,2]
[353804178,1740059437838,-503.0,0.0001378,2]
[353804179,1740059437847,-425.21510411,0.0001378,2]
[353804180,1740059437856,-423.0,0.0001378,2]
[353804181,1740059437865,-600.0,0.00013782,2]
[353804182,1740059437874,-150.0,0.00013792,2]
[353804183,1740059437884,-150.0,0.00013792,2]
[353804184,1740059437892,-150.0,0.00013792,2]
[353804185,1740059437901,-150.0,0.000138,30]
[353804186,1740059437910,-35864.93117396,0.000138,2]
[353804187,1740059437926,-65767.00553537,0.000138,2]
[353804188,1740059437935,-153.0,0.000138,2]
[353804189,1740059437946,-153.0,0.000138,2]
[353804190,1740059437955,-153.0,0.000138,2]
[353804191,1740059437963,-153.0,0.000138,2]
[353804192,1740059437972,-153.0,0.000138,2]
[353804193,1740059437982,-306.0,0.000138,2]
[353804194,1740059437991,-222.986595,0.000138,2]
[353804195,1740059437999,-222.986595,0.000138,2]
[353804196,1740059438007,-150.0,0.0001382,2]
[353804197,1740059438016,-538.0,0.0001382,2]
[353804198,1740059438025,-1969.0,0.0001382,2]
[353804199,1740059438035,-2287.0,0.0001382,2]
[353804200,1740059438047,-378.792,0.0001382,2]
[353804201,1740059438056,-413.208,0.0001382,2]
[353804202,1740059438066,-135.07537935,0.0001382,2]
[353804209,1740059440230,-14.92462065,0.0001382,2]
[353804210,1740059440240,-150.0,0.0001382,2]
[353804211,1740059440250,-3000.0,0.00013845,2]
[353804212,1740059440259,-500.0,0.00013863,2]
[353804213,1740059440269,-500.0,0.00013863,2]
[353804214,1740059440279,-500.0,0.00013863,2]
[353804215,1740059440289,-500.0,0.00013863,2]
[353804216,1740059440298,-500.0,0.00013863,2]
[353804217,1740059440308,-500.0,0.00013863,2]
[353804218,1740059440318,-500.0,0.00013863,2]
[353804219,1740059440328,-502.86,0.00013863,2]
[353804220,1740059440338,-500.0,0.00013863,2]
[353804221,1740059440347,-500.0,0.00013863,2]
[353804222,1740059440356,-694.29,0.00013863,2]
[353804223,1740059440365,-500.0,0.00013863,2]
[353804224,1740059440375,-819.04,0.00013863,2]
[353804225,1740059440384,-500.0,0.00013863,2]
[353804226,1740059440393,-500.0,0.00013863,2]
[353804227,1740059440403,-500.0,0.00013863,2]
[353804228,1740059440412,-500.0,0.00013863,2]
[353804229,1740059440422,-500.0,0.00013863,2]
[353804230,1740059440431,-698.85,0.00013863,2]
[353804231,1740059440441,-517.11,0.00013863,2]
[353804232,1740059440450,-500.0,0.00013863,2]
[353804233,1740059440460,-500.0,0.00013863,2]
[353804234,1740059440469,-500.0,0.00013863,2]
[353804235,1740059440478,-500.0,0.00013863,2]
[353804236,1740059440487,-500.0,0.00013863,2]
[353804237,1740059440496,-500.0,0.00013863,2]
[353804238,1740059440506,-500.0,0.00013863,2]
[353804239,1740059440515,-500.0,0.00013863,2]
[353804240,1740059440524,-2151.29,0.00013863,2]
[353804241,1740059440533,-2431.24,0.00013863,2]
[353804242,1740059440542,-526.0355927,0.00013863,2]
[353804243,1740059442996,-182.46353213,0.00013697,2]
[353804244,1740059443006,-500.0,0.00013697,2]
[353804245,1740059443015,-8737.96359601,0.00013863,2]
[353804246,1740059443054,-499.9967325,0.00013863,2]
[353804247,1740059443086,-102.01448353,0.00013863,2]
[353804268,1740059445983,-500.0,0.00013698,2]
[353804270,1740059445993,-2178.34,0.00013698,2]
[353804272,1740059446002,-500.0,0.0001378,2]
[353804274,1740059446011,-574.510272,0.0001378,2]
[353804279,1740059873327,268.890473,9.041e-05,2]
[353804305,1740060632249,-300.0,0.00013441,2]
[353804306,1740060632259,-217.9462302,0.00013442,2]
[353804307,1740060632271,-2064.5055936,0.00013442,2]
[353804308,1740060632282,-428.91631886,0.00013442,2]
[353804309,1740060636262,-10564.41213751,0.00013442,2]
[353804310,1740060636272,-7083.64970355,0.000135,2]
[353804311,1740060636282,-4270.6096125,0.000135,2]
[353804312,1740060636292,-3997.84545198,0.000135,2]
[353804313,1740060636301,-1634.03547207,0.0001358,2]
[353804314,1740060636311,-500.0,0.00013584,2]
[353804315,1740060636320,-500.0,0.00013584,2]
[353804316,1740060636330,-379.23796987,0.00013584,2]
[353804317,1740060636339,-500.0,0.00013584,2]
[353804318,1740060636349,-526.38612586,0.00013584,2]
[353804319,1740060636359,-355.08653656,0.00013584,2]
[353804321,1740060636368,-1914.37627225,0.00013585,5]
[353804323,1740060636378,-650.88660495,0.00013585,5]
[353804325,1740060636387,-222.342187,0.00013585,2]
[353804327,1740060636397,-2573.59696293,0.00013585,2]
[353804329,1740060636409,-20852.16763642,0.00013585,2]
[353804331,1740060636423,-3566.3878,0.00013585,2]
[353804334,1740060636435,-38974.76613822,0.00013585,2]
[353804374,1740060637975,-268.735003,0.00013585,2]
[353804375,1740060637987,-1012.6,0.00013585,2]
[353804376,1740060637998,-1968.95740494,0.00013585,2]
[353804377,1740060638009,-47898.85145242,0.00013585,2]
[353804378,1740060638020,-19162.25143469,0.00013585,2]
[353804379,1740060638034,-7951.60775261,0.00013585,2]
[353804380,1740060638047,-3681.66136956,0.00013585,2]
[353804381,1740060638059,-1333.99999851,0.00013585,2]
[353804382,1740060638070,-1601.06569073,0.00013585,2]
[353804383,1740060638095,-18613.54959375,0.00013585,2]
[353804384,1740060638123,-4118.09133432,0.00013585,2]
[353804429,1740060640424,-1041.44652036,0.00013585,2]
[353804436,1740060644391,-153.54892576,0.00013584,2]
[353804437,1740060644401,-397.14347851,0.00013585,2]
[353804438,1740060644421,-903.279996,0.00013585,2]
[353804452,1740060646148,-1032.01014934,0.00013585,2]
[353804453,1740060646176,-1460.0152113,0.00013585,2]
[353804456,1740061007769,275.44595,9.041e-05,2]
[353804457,1740061103537,1000.0,0.00019,120]
[353805092,1740061331076,200.0,0.00019,120]
[353805093,1740061335665,2000.0,0.00019,120]
[353805100,1740061710139,2887.26720551,0.00017992,120]
[353805128,1740061832293,-833.82698,0.00013,2]
[353805129,1740061832305,-2899.75270677,0.00013,2]
[353805130,1740061832314,-300.0,0.00013211,2]
[353805131,1740061832323,-13275.78028017,0.00013212,2]
[353805132,1740061832332,-219.36,0.00013313,2]
[353805133,1740061832342,-2000.0,0.000134,2]
[353805134,1740061832351,-277.37804486,0.00013485,2]
[353805135,1740061832360,-3598.0609068,0.00013485,2]
[353805136,1740061832369,-1952.7851723,0.000135,3]
[353805137,1740061832379,-2500.0,0.000135,2]
[353805139,1740061832388,-2500.0,0.000135,2]
[353805141,1740061832398,-2500.0,0.000135,2]
[353805143,1740061832409,-500.0,0.00013573,2]
[353805147,1740061832419,-151.0,0.00013577,2]
[353805149,1740061832428,-500.0,0.0001358,2]
[353805151,1740061832437,-500.0,0.00013584,2]
[353805153,1740061832447,-500.0,0.00013584,2]
[353805155,1740061832456,-500.0,0.00013584,2]
[353805157,1740061832466,-500.0,0.00013584,2]
[353805159,1740061832476,-500.0,0.00013584,2]
[353805161,1740061832487,-500.0,0.00013584,2]
[353805163,1740061832496,-500.0,0.00013584,2]
[353805165,1740061832506,-500.0,0.00013584,2]
[353805167,1740061832516,-500.0,0.00013584,2]
[353805168,1740061832526,-500.0,0.00013584,2]
[353805169,1740061832535,-500.0,0.00013584,2]
[353805170,1740061832545,-500.0,0.00013584,2]
[353805171,1740061832555,-500.0,0.00013584,2]
[353805172,1740061832565,-235.4908333,0.00013584,2]
[353805173,1740061832575,-5115.16786723,0.00013584,2]
[353805174,1740061832584,-957.18813612,0.00013585,5]
[353805175,1740061832594,-325.44330248,0.00013585,5]
[353805176,1740061832603,-114047.16943858,0.00013585,2]
[353805177,1740061832615,-3845.2,0.00013585,2]
[353805178,1740061832627,-2438.4,0.00013585,2]
[353805190,1740061838094,-6196.94813995,0.00013585,2]
[353805191,1740061838186,-3393.27706792,0.00013585,2]
[353805251,1740061840437,-8441.44542794,0.00013585,2]
[353805261,1740061840523,-2464.0,0.00013585,2]
[353805343,1740061843630,-10339.13563643,0.00013585,2]
[353805344,1740061843644,-1928.01834026,0.00013585,2]
[353805357,1740061846201,-2008.2,0.00013585,2]
[353805360,1740061999094,281.673652,9.041e-05,2]
[353805375,1740062966130,-586.5497215,0.00010876,2]
[353805418,1740063032382,-1113.95551085,0.00010876,2]
[353805421,1740063032414,-499.49476765,0.00010876,2]
[353805422,1740063032424,-346.15062323,0.00012246,2]
[353805423,1740063032433,-2200.0,0.00012246,2]
[353805424,1740063032443,-445.1830682,0.00012413,2]
[353805425,1740063032452,-300.0,0.00013279,2]
[353805427,1740063032464,-1072.90911478,0.0001328,2]
[353805433,1740063032539,-963.85,0.0001328,2]
[353805434,1740063032551,-433.8591904,0.0001328,2]
[353805435,1740063032574,-5621.99722335,0.0001328,2]
[353805436,1740063032586,-3491.10007,0.0001328,2]
[353805448,1740063038322,-656.53893869,0.0001328,2]
[353805449,1740063038334,-1035.52574295,0.0001328,2]
[353805450,1740063038344,-175.488,0.00013313,2]
[353805452,1740063038354,-3238.25481612,0.00013485,2]
[353805453,1740063038363,-254.84176567,0.00013485,2]
[353805454,1740063038372,-2256.28309774,0.000135,2]
[353805455,1740063038383,-9435.71028066,0.000135,2]
[353805456,1740063038394,-22567.0066216,0.000135,2]
[353805457,1740063038403,-2500.0,0.000135,2]
[353805458,1740063038413,-500.0,0.00013573,2]
[353805459,1740063038422,-151.0,0.00013577,2]
[353805460,1740063038431,-1012.81760778,0.0001358,2]
[353805461,1740063038440,-500.0,0.00013584,2]
[353805462,1740063038449,-500.0,0.00013584,2]
[353805463,1740063038458,-265.46286471,0.00013584,2]
[353805465,1740063038469,-212.17328647,0.00013584,2]
[353805467,1740063038478,-1065.00959555,0.00013584,2]
[353805469,1740063038512,-500.0,0.00013584,2]
[353805470,1740063038524,-10115.33718355,0.00013584,2]
[353805471,1740063038534,-677.56108985,0.00013585,5]
[353805472,1740063038543,-162.72165124,0.00013585,5]
[353805473,1740063038553,-12799.54397108,0.00013585,2]
[353805474,1740063038564,-32331.43877514,0.00013585,2]
[353805487,1740063040765,-7863.38905835,0.00013585,2]
[353805488,1740063040777,-57610.46499876,0.00013585,2]
[353805489,1740063040788,-39981.83354784,0.00013585,2]
[353805490,1740063040800,-4910.92031945,0.00013585,2]
[353805491,1740063040811,-513.105,0.00013585,2]
[353805492,1740063040823,-1546.78600054,0.00013585,2]
[353805493,1740063040834,-52441.08319436,0.00013585,2]
[353805526,1740063043476,-19557.6,0.00013585,2]
[353805527,1740063043504,-3840.79828,0.00013585,2]
[353805562,1740063046488,-73836.8377463,0.00013585,2]
[353805563,1740063046500,-1000.0,0.00013585,2]
[353805564,1740063046632,-92908.62886992,0.00013585,2]
[353805567,1740063106051,287.589969,9.041e-05,2]
[353805579,1740064148867,273.21047,9.041e-05,2]
[353805606,1740064232626,-2000.0,0.00010876,2]
[353805608,1740064232636,-300.0,0.00012221,2]
[353805610,1740064232645,-3813.32876582,0.00012222,3]
[353805612,1740064232658,-3689.18319,0.00012222,3]
[353805614,1740064232670,-1950.575,0.00012222,3]
[353805616,1740064232682,-13511.64998495,0.00012222,3]
[353805618,1740064232691,-2000.0,0.00012246,2]
[353805620,1740064232701,-4176.2325678,0.00012516,2]
[353805622,1740064232710,-349.3482324,0.00013313,2]
[353805624,1740064232720,-13275.78028017,0.00013322,2]
[353805626,1740064232729,-396.0,0.0001334,2]
[353805628,1740064232739,-420.0,0.00013413,2]
[353805630,1740064232748,-3000.0,0.00013485,2]
[353805633,1740064232757,-1311.99929057,0.00013485,2]
[353805635,1740064232767,-2914.42933449,0.00013485,2]
[353805636,1740064232776,-500.0,0.00013524,2]
[353805638,1740064232787,-500.0,0.00013524,2]
[353805640,1740064232796,-500.0,0.00013524,2]
[353805641,1740064232806,-500.0,0.00013524,2]
[353805643,1740064232815,-500.0,0.00013524,2]
[353805644,1740064232823,-500.0,0.00013524,2]
[353805645,1740064232833,-500.0,0.00013524,2]
[353805646,1740064232844,-500.0,0.00013524,2]
[353805647,1740064232853,-500.0,0.00013524,2]
[353805648,1740064232862,-235.3364407,0.00013524,2]
[353805649,1740064232871,-500.0,0.00013524,2]
[353805650,1740064232881,-450.70177101,0.00013524,2]
[353805651,1740064232891,-12194.98867511,0.00013525,2]
[353805652,1740064232900,-503.64714928,0.00013573,2]
[353805653,1740064232909,-500.0,0.00013573,2]
[353805654,1740064232920,-500.0,0.00013573,2]
[353805655,1740064232930,-204.99690103,0.00013573,2]
[353805656,1740064232941,-501.57008291,0.00013573,2]
[353805657,1740064232951,-501.18304847,0.00013573,2]
[353805658,1740064232960,-500.0,0.00013573,2]
[353805659,1740064232970,-176.776,0.00013577,2]
[353805660,1740064232979,-151.0,0.00013577,2]
[353805661,1740064232989,-1012.51558658,0.0001358,2]
[353805662,1740064232998,-950.54400044,0.00013584,2]
[353805663,1740064233007,-151.0,0.00013584,2]
[353805664,1740064233018,-338.78054492,0.00013585,5]
[353805665,1740064233028,-218.41815076,0.00013585,5]
[353805666,1740064233039,-111782.80991251,0.00013585,2]
[353805667,1740064233051,-25882.01474386,0.00013585,2]
[353805668,1740064233077,-59009.19849654,0.00013585,2]
[353805687,1740064238555,-823.544997,0.00013585,2]
[353805690,1740064238567,-6351.28166407,0.00013585,2]
[353805692,1740064238581,-293731.52237994,0.00013585,2]
[353805694,1740064238593,-16015.27854567,0.00013585,2]
[353805697,1740064238604,-12006.6997504,0.00013585,2]
[353805699,1740064238616,-117040.38582915,0.00013585,2]
[353805701,1740064238627,-291.75745758,0.00013585,2]
[353805727,1740064241082,-19442.19999997,0.00013585,2]
[353805728,1740064241094,-15793.25381861,0.00013585,2]
[353805729,1740064241106,-32050.97187495,0.00013585,2]
[353805730,1740064241119,-1255.04472493,0.00013585,2]
[353805731,1740064241130,-15375.79842595,0.00013585,2]
[353805732,1740064241142,-356.95191,0.00013585,2]
[353805733,1740064241153,-706.03866213,0.00013585,2]
[353805760,1740064245279,-12500.14222859,0.00013585,2]
[353805761,1740064245313,-2530.11843582,0.00013585,2]
[353805762,1740064245358,-11.97040248,0.00013585,2]
[353805763,1740064245369,-97213.02814732,0.00013585,2]
[353805764,1740064245380,-655.15499787,0.00013585,2]
[353805765,1740064245392,-183310.79803781,0.00013585,2]
[353805766,1740064245408,-454.4635,0.00013585,2]
[353805791,1740064246635,-2446.19683547,0.00013585,2]
[353805792,1740064246666,-34000.001305,0.00013585,2]
[353805800,1740065312546,1064.15054927,0.00018005,90]
[353805810,1740065378129,279.549947,9.041e-05,2]
[353805835,1740065431835,-1800.0,0.00011972,2]
[353805836,1740065431845,-420.6282579,0.00012503,2]
[353805837,1740065431859,-300.0,0.00013233,2]
[353805838,1740065431869,-13275.78028017,0.00013234,2]
[353805839,1740065431879,-451.2585483,0.00013313,2]
[353805840,1740065431890,-1800.0,0.00013342,2]
[353805841,1740065431900,-3000.0,0.00013485,2]
[353805842,1740065431910,-193.76226366,0.00013485,2]
[353805843,1740065431919,-2698.12659667,0.00013485,2]
[353805844,1740065431929,-1315.11069473,0.00013485,2]
[353805845,1740065431938,-300.41757201,0.000135,2]
[353805846,1740065431948,-500.0,0.00013573,2]
[353805847,1740065431957,-500.0,0.00013573,2]
[353805848,1740065431967,-150.03214372,0.00013573,2]
[353805849,1740065431977,-500.0,0.00013573,2]
[353805850,1740065431987,-151.0,0.00013577,2]
[353805851,1740065431998,-500.0,0.00013583,2]
[353805852,1740065432008,-500.0,0.00013583,2]
[353805853,1740065432018,-500.0,0.00013583,2]
[353805854,1740065432028,-500.0,0.00013583,2]
[353805855,1740065432038,-460.60822416,0.00013583,2]
[353805856,1740065432048,-500.0,0.00013583,2]
[353805857,1740065432058,-500.0,0.00013583,2]
[353805858,1740065432068,-500.0,0.00013583,2]
[353805859,1740065432078,-500.0,0.00013583,2]
[353805860,1740065432089,-500.0,0.00013583,2]
[353805861,1740065432101,-500.0,0.00013583,2]
[353805862,1740065432112,-500.0,0.00013583,2]
[353805863,1740065432122,-500.0,0.00013583,2]
[353805864,1740065432132,-490.26409214,0.00013583,2]
[353805865,1740065432142,-500.0,0.00013583,2]
[353805866,1740065432152,-392.29475007,0.00013583,2]
[353805867,1740065432161,-500.0,0.00013583,2]
[353805868,1740065432171,-500.0,0.00013583,2]
[353805869,1740065432180,-500.0,0.00013583,2]
[353805870,1740065432190,-500.0,0.00013583,2]
[353805871,1740065432200,-151.0,0.00013584,2]
[353805872,1740065432210,-151.0,0.00013584,2]
[353805873,1740065432220,-256.24599577,0.00013584,2]
[353805874,1740065432230,-20741.72423763,0.00013584,2]
[353805875,1740065432243,-1941.66,0.00013584,2]
[353805876,1740065432263,-8748.28030889,0.00013584,2]
[353805877,1740065432273,-169.39027246,0.00013585,5]
[353805878,1740065432283,-23248.01091652,0.00013585,2]
[353805901,1740065438013,-670.89738549,0.00013585,2]
[353805902,1740065438028,-5680.8,0.00013585,2]
[353805903,1740065438040,-152877.36866999,0.00013585,2]
[353805904,1740065438051,-381.56998245,0.00013585,2]
[353805905,1740065438063,-13431.6012986,0.00013585,2]
[353805906,1740065438074,-9216.45234021,0.00013585,2]
[353805930,1740065440143,-1410356.58705072,0.00013585,2]
[353810169,1740066504928,285.57245,9.041e-05,2]
[353810212,1740066632135,-1500.0,0.00011972,2]
[353810213,1740066632146,-300.0,0.00013215,2]
[353810214,1740066632156,-13275.78028017,0.00013216,2]
[353810215,1740066632166,-300.8390322,0.00013313,2]
[353810217,1740066632175,-1500.0,0.00013342,2]
[353810219,1740066632185,-156.758091,0.00013425,2]
[353810221,1740066632195,-958.42848793,0.00013485,2]
[353810223,1740066632204,-1440.64188147,0.00013485,2]
[353810224,1740066632216,-2428.31393703,0.00013485,2]
[353810226,1740066632226,-193.68974697,0.00013485,2]
[353810228,1740066632236,-909.0,0.000135,14]
[353810229,1740066632246,-303.5242523,0.000135,2]
[353810230,1740066632255,-306.4000604,0.000135,2]
[353810231,1740066632266,-500.0,0.00013573,2]
[353810232,1740066632275,-160.05713274,0.00013573,2]
[353810233,1740066632284,-500.0,0.00013573,2]
[353810234,1740066632294,-500.0,0.00013573,2]
[353810235,1740066632303,-151.0,0.00013577,2]
[353810236,1740066632313,-179.37219704,0.00013584,2]
[353810237,1740066632323,-217.44993648,0.00013584,2]
[353810238,1740066632332,-500.0,0.00013584,2]
[353810239,1740066632342,-500.0,0.00013584,2]
[353810240,1740066632351,-542.96958676,0.00013584,2]
[353810241,1740066632360,-500.0,0.00013584,2]
[353810242,1740066632370,-500.0,0.00013584,2]
[353810243,1740066632379,-500.0,0.00013584,2]
[353810244,1740066632389,-500.0,0.00013584,2]
[353810245,1740066632398,-590.50513021,0.00013584,2]
[353810246,1740066632408,-500.0,0.00013584,2]
[353810247,1740066632422,-500.0,0.00013584,2]
[353810248,1740066632431,-500.0,0.00013584,2]
[353810249,1740066632441,-270.41595663,0.00013584,2]
[353810250,1740066632450,-500.0,0.00013584,2]
[353810251,1740066632462,-500.0,0.00013584,2]
[353810252,1740066632472,-500.0,0.00013584,2]
[353810253,1740066632481,-169.39027246,0.00013585,5]
[353810254,1740066632491,-7578.62205163,0.00013585,2]
[353810255,1740066632504,-119174.5414092,0.00013585,2]
[353810256,1740066632520,-94990.0,0.00013585,2]
[353810257,1740066632532,-1289.31172241,0.00013585,2]
[353810258,1740066632543,-4852.00571664,0.00013585,2]